[Event "EYCC Open-U18 2019"]
[Site "Bratislava"]
[Date "2019.08.03"]
[Round "2.16"]
[White "Garanin, Aleksei"]
[Black "Gorshtein, Ido"]
[Result "1/2-1/2"]
[ECO "B12"]
[WhiteElo "2192"]
[BlackElo "2367"]
[Annotator "NA"]
[PlyCount "104"]
[EventDate "2019.08.02"]
[EventType "swiss"]
[EventCountry "SVK"]
[SourceTitle "playchess.com"]
[Source "ChessBase"]
[SourceQuality "1"]
[TimeControl "40/5400+30:1800+30"]

1. e4 {[%emt 0:02:03]} c6 {[%emt 0:00:00]} 2. d4 {[%emt 0:00:18]} d5 {[%emt 0:00:00]} 3. e5 {[%emt 0:00:17]} Bf5 {[%emt 0:00:00]} 4. Nd2 {[%emt 0:00:07]} e6 {[%emt 0:00:31]} 5. Nb3 {[%emt 0:00:04]} Nd7 {[%emt 0:00:31]} 6. Nf3 {[%emt 0:00:06]} Qc7 {[%emt 0:13:11]} 7. Be2 {[%emt 0:00:56]} Ne7 {[%emt 0:01:49]} 8. O-O {[%emt 0:00:11]} h6 {[%emt 0:02:18]} 9. Ne1 {[%emt 0:01:28]} c5 {[%emt 0:02:25]} 10. Nxc5 {[%emt 0:03:01]} Nxc5 {[%emt 0:00:15]} 11. dxc5 {[%emt 0:00:01]} Nc6 {[%emt 0:01:51]} 12. Nd3 {[%emt 0:04:58]} Bxd3 {[%emt 0:00:17]} 13. Bxd3 {[%emt 0:00:42]} Qxe5 {[%emt 0:04:14]} 14. Re1 {[%emt 0:11:07]} Qf6 {[%emt 0:01:21]} 15. Be3 {[%emt 0:01:31]} d4 {[%emt 0:02:44]} 16. Bd2 {[%emt 0:00:17]} Bxc5 {[%emt 0:00:14]} 17. Qh5 {[%emt 0:00:21]} Bd6 {[%emt 0:06:58]} 18. Re4 {[%emt 0:31:57]} O-O-O {[%emt 0:09:35]} 19. c3 {[%emt 0:06:39]} Bc7 {[%emt 0:14:45]} 20. cxd4 {[%emt 0:09:32]} Rd5 {[%emt 0:00:45]} 21. Qh3 {[%emt 0:03:14]} Rhd8 {[%emt 0:06:45]} 22. Rc1 {[%emt 0:06:23]} Kb8 {[%emt 0:02:59]} 23. Bc3 {[%emt 0:08:04]} Nxd4 {[%emt 0:04:17]} 24. Bc4 {[%emt 0:00:33]} R5d6 {[%emt 0:04:32]} 25. a4 {[%emt 0:02:07]} Qg5 {[%emt 0:05:38]} 26. Rf1 {[%emt 0:01:39]} Qc5 {[%emt 0:00:34]} 27. b3 {[%emt 0:00:45]} Nf5 {[%emt 0:01:18]} 28. Re5 {[%emt 0:01:08]} Qa3 {[%emt 0:02:10]} 29. Rb5 {[%emt 0:03:05]} Rb6 {[%emt 0:02:54]} 30. Bb4 {[%emt 0:01:36]} Qb2 {[%emt 0:00:25]} 31. Rxb6 {[%emt 0:00:36]} axb6 {[%emt 0:00:34]} 32. Bc3 {[%emt 0:00:13]} Qc2 {[%emt 0:01:08]} 33. Qf3 {[%emt 0:00:20]} g6 {[%emt 0:01:16]} 34. Bf6 {[%emt 0:00:13]} Rd7 {[%emt 0:02:34]} 35. Bb5 {[%emt 0:00:11]} Rd6 {[%emt 0:01:13]} 36. Bc4 {[%emt 0:00:28]} h5 {[%emt 0:01:40]} 37. Bb5 {[%emt 0:01:38]} Qc5 {[%emt 0:01:12]} 38. Re1 {[%emt 0:00:17]} Rd2 {[%emt 0:00:43]} 39. Rf1 {[%emt 0:00:34]} Qd6 {[%emt 0:02:46]} 40. g3 {[%emt 0:00:00]} Qc5 {[%emt 0:00:00]} 41. Rd1 {[%emt 0:03:58]} Rxd1+ {[%emt 0:06:10]} 42. Qxd1 {[%emt 0:00:42]} Bd6 {[%emt 0:07:35]} 43. Qd3 {[%emt 0:02:55]} Ka7 {[%emt 0:02:13]} 44. Qc3 {[%emt 0:03:45]} Qd5 {[%emt 0:02:40]} 45. Qd3 {[%emt 0:02:33]} Qc5 {[%emt 0:03:33]} 46. Qc3 {[%emt 0:00:16]} Be7 {[%emt 0:01:25]} 47. Be5 {[%emt 0:04:08]} Qd5 {[%emt 0:01:51]} 48. Bc4 {[%emt 0:08:14]} Qd1+ {[%emt 0:01:48]} 49. Kg2 {[%emt 0:00:22]} Bd6 {[%emt 0:02:39]} 50. Bf6 {[%emt 0:00:24]} Bc5 {[%emt 0:01:30]} 51. Bd3 {[%emt 0:01:02]} Qg4 {[%emt 0:01:11]} 52. h3 {[%emt 0:01:15]} Qb4 {[%emt 0:01:45]} 1/2-1/2

[Event "EYCC Open-U18 2019"]
[Site "Bratislava"]
[Date "2019.08.03"]
[Round "2.17"]
[White "Kaasen, Tor Fredrik"]
[Black "Mladek, Richard"]
[Result "1-0"]
[ECO "A22"]
[WhiteElo "2376"]
[BlackElo "2253"]
[Annotator "NA"]
[PlyCount "53"]
[EventDate "2019.08.02"]
[EventType "swiss"]
[EventCountry "SVK"]
[SourceTitle "playchess.com"]
[Source "ChessBase"]
[SourceQuality "1"]
[TimeControl "40/5400+30:1800+30"]

1. c4 {[%emt 0:00:00]} Nf6 {[%emt 0:00:00]} 2. Nc3 {[%emt 0:00:00]} e5 {[%emt 0:11:08]} 3. g3 {[%emt 0:00:30]} d5 {[%emt 0:03:30]} 4. cxd5 {[%emt 0:00:20]} Nxd5 {[%emt 0:00:07]} 5. Bg2 {[%emt 0:00:05]} Nb6 {[%emt 0:00:34]} 6. Nf3 {[%emt 0:01:41]} Nc6 {[%emt 0:00:08]} 7. a3 {[%emt 0:01:48]} Be7 {[%emt 0:06:36]} 8. b4 {[%emt 0:01:37]} a6 {[%emt 0:03:23]} 9. d3 {[%emt 0:01:10]} O-O {[%emt 0:00:25]} 10. O-O {[%emt 0:00:25]} Bg4 {[%emt 0:06:38]} 11. Be3 {[%emt 0:06:25]} Re8 {[%emt 0:03:05]} 12. Rc1 {[%emt 0:02:31]} Bf8 {[%emt 0:04:15]} 13. Ne4 {[%emt 0:07:13]} a5 {[%emt 0:02:29]} 14. Nc5 {[%emt 0:06:02]} axb4 {[%emt 0:12:40]} 15. Nxb7 {[%emt 0:04:38]} Qb8 {[%emt 0:00:09]} 16. Rxc6 {[%emt 0:01:36]} Qxb7 {[%emt 0:00:04]} 17. Rxb6 {[%emt 0:10:35]} cxb6 {[%emt 0:00:05]} 18. Nxe5 {[%emt 0:00:06]} Qc8 {[%emt 0:06:23]} 19. Nxg4 {[%emt 0:00:55]} Rxa3 {[%emt 0:00:47]} 20. h3 {[%emt 0:00:50]} h5 {[%emt 0:03:38]} 21. Nh2 {[%emt 0:00:51]} Bc5 {[%emt 0:04:57]} 22. d4 {[%emt 0:11:02]} Bd6 {[%emt 0:00:07]} 23. Nf3 {[%emt 0:00:10]} Qc4 {[%emt 0:04:46]} 24. Nd2 {[%emt 0:04:46]} Qb5 {[%emt 0:01:39]} 25. Ne4 {[%emt 0:01:07]} Bf8 {[%emt 0:00:31]} 26. Qb1 {[%emt 0:02:54]} Qa4 {[%emt 0:12:01]} 27. Ng5 {[%emt 0:00:51]} 1-0

[Event "EYCC Open-U18 2019"]
[Site "Bratislava"]
[Date "2019.08.03"]
[Round "2.18"]
[White "Kukas, Oliver"]
[Black "Gatineau, Yovann"]
[Result "1-0"]
[ECO "A45"]
[WhiteElo "2082"]
[BlackElo "2364"]
[Annotator "NA"]
[PlyCount "69"]
[EventDate "2019.08.02"]
[EventType "swiss"]
[EventCountry "SVK"]
[SourceTitle "playchess.com"]
[Source "ChessBase"]
[SourceQuality "1"]
[TimeControl "40/5400+30:1800+30"]

1. d4 {[%emt 0:00:00]} Nf6 {[%emt 0:00:00]} 2. Bf4 {[%emt 0:00:00]} e6 {[%emt 0:00:00]} 3. Nf3 {[%emt 0:00:03]} c5 {[%emt 0:00:00]} 4. e3 {[%emt 0:00:54]} cxd4 {[%emt 0:00:00]} 5. exd4 {[%emt 0:00:32]} b6 {[%emt 0:00:00]} 6. Bd3 {[%emt 0:00:42]} Bb7 {[%emt 0:00:11]} 7. Nbd2 {[%emt 0:00:23]} Be7 {[%emt 0:00:21]} 8. c3 {[%emt 0:00:48]} O-O {[%emt 0:00:30]} 9. Qe2 {[%emt 0:00:07]} d6 {[%emt 0:00:42]} 10. O-O-O {[%emt 0:01:43]} Nbd7 {[%emt 0:01:25]} 11. h4 {[%emt 0:01:32]} Qc7 {[%emt 0:02:26]} 12. Rhg1 {[%emt 0:08:48]} Rfe8 {[%emt 0:02:38]} 13. Ng5 {[%emt 0:09:08]} Nf8 {[%emt 0:03:42]} 14. g4 {[%emt 0:05:09]} Rac8 {[%emt 0:08:58]} 15. Nde4 {[%emt 0:03:52]} Nd5 {[%emt 0:15:12]} 16. Bd2 {[%emt 0:02:58]} e5 {[%emt 0:03:05]} 17. Kb1 {[%emt 0:07:17]} Ng6 {[%emt 0:05:59]} 18. Qf3 {[%emt 0:07:44]} Bxg5 {[%emt 0:08:42]} 19. hxg5 {[%emt 0:05:42]} Ndf4 {[%emt 0:01:57]} 20. Bxf4 {[%emt 0:00:40]} exf4 {[%emt 0:00:44]} 21. Rde1 {[%emt 0:06:47]} Re6 {[%emt 0:03:59]} 22. d5 {[%emt 0:07:55]} Re5 {[%emt 0:00:52]} 23. Qh3 {[%emt 0:00:25]} Bxd5 {[%emt 0:03:13]} 24. Rh1 {[%emt 0:02:16]} Rce8 {[%emt 0:07:04]} 25. f3 {[%emt 0:02:53]} Qc6 {[%emt 0:13:14]} 26. Rd1 {[%emt 0:02:37]} Qa4 {[%emt 0:03:17]} 27. a3 {[%emt 0:04:42]} Qb3 {[%emt 0:04:16]} 28. Nf6+ {[%emt 0:00:59]} gxf6 {[%emt 0:01:56]} 29. Qxh7+ {[%emt 0:00:41]} Kf8 {[%emt 0:00:07]} 30. gxf6 {[%emt 0:00:19]} Qxd1+ {[%emt 0:03:44]} 31. Rxd1 {[%emt 0:00:09]} R8e6 {[%emt 0:01:04]} 32. Qg7+ {[%emt 0:00:23]} Ke8 {[%emt 0:00:05]} 33. Bxg6 {[%emt 0:00:09]} fxg6 {[%emt 0:00:18]} 34. f7+ {[%emt 0:00:06]} Ke7 {[%emt 0:00:04]} 35. f8=Q# {[%emt 0:00:07]} 1-0

[Event "EYCC Open-U18 2019"]
[Site "Bratislava"]
[Date "2019.08.03"]
[Round "2.19"]
[White "Baenziger, Fabian"]
[Black "Boev, Viktor"]
[Result "1-0"]
[ECO "A06"]
[WhiteElo "2352"]
[BlackElo "2246"]
[Annotator "NA"]
[PlyCount "71"]
[EventDate "2019.08.02"]
[EventType "swiss"]
[EventCountry "SVK"]
[SourceTitle "playchess.com"]
[Source "ChessBase"]
[SourceQuality "1"]
[TimeControl "40/5400+30:1800+30"]

1. Nf3 {[%emt 0:00:00]} d5 {[%emt 0:00:00]} 2. g3 {[%emt 0:00:03]} Bf5 {[%emt 0:00:43]} 3. Bg2 {[%emt 0:00:26]} e6 {[%emt 0:00:26]} 4. O-O {[%emt 0:02:51]} h6 {[%emt 0:02:55]} 5. d3 {[%emt 0:03:39]} Nf6 {[%emt 0:00:19]} 6. Nfd2 {[%emt 0:00:50]} Be7 {[%emt 0:02:04]} 7. e4 {[%emt 0:00:09]} Bh7 {[%emt 0:00:53]} 8. Nc3 {[%emt 0:00:24]} O-O {[%emt 0:07:38]} 9. f4 {[%emt 0:00:32]} Nc6 {[%emt 0:14:03]} 10. g4 {[%emt 0:05:50]} Nd4 {[%emt 0:05:21]} 11. Kh1 {[%emt 0:16:06]} c6 {[%emt 0:01:58]} 12. Ncb1 {[%emt 0:02:03]} c5 {[%emt 0:17:17]} 13. c3 {[%emt 0:07:38]} Nc6 {[%emt 0:00:11]} 14. Qe2 {[%emt 0:00:10]} b5 {[%emt 0:03:46]} 15. a4 {[%emt 0:10:04]} b4 {[%emt 0:00:43]} 16. Qf3 {[%emt 0:06:53]} Rc8 {[%emt 0:02:07]} 17. h4 {[%emt 0:03:34]} dxe4 {[%emt 0:05:01]} 18. dxe4 {[%emt 0:00:21]} Nd7 {[%emt 0:00:32]} 19. g5 {[%emt 0:03:50]} hxg5 {[%emt 0:02:00]} 20. hxg5 {[%emt 0:00:04]} e5 {[%emt 0:02:40]} 21. Nc4 {[%emt 0:01:10]} exf4 {[%emt 0:01:05]} 22. Rd1 {[%emt 0:00:08]} Bxg5 {[%emt 0:02:27]} 23. Bh3 {[%emt 0:00:51]} Rc7 {[%emt 0:01:45]} 24. Bxf4 {[%emt 0:02:32]} Qf6 {[%emt 0:05:50]} 25. Bf5 {[%emt 0:00:27]} Bxf4 {[%emt 0:03:27]} 26. Qxf4 {[%emt 0:00:08]} Bxf5 {[%emt 0:04:23]} 27. exf5 {[%emt 0:00:08]} Nde5 {[%emt 0:00:55]} 28. Rd6 {[%emt 0:04:46]} Qe7 {[%emt 0:02:38]} 29. f6 {[%emt 0:02:19]} gxf6 {[%emt 0:00:05]} 30. Nbd2 {[%emt 0:00:22]} Kg7 {[%emt 0:00:52]} 31. Ne3 {[%emt 0:01:24]} Rh8+ {[%emt 0:00:32]} 32. Kg1 {[%emt 0:00:19]} Rh5 {[%emt 0:03:46]} 33. Ne4 {[%emt 0:01:26]} Ng6 {[%emt 0:02:56]} 34. Nf5+ {[%emt 0:01:41]} Kf8 {[%emt 0:03:58]} 35. Nxe7 {[%emt 0:06:32]} Nxf4 {[%emt 0:00:07]} 36. Nxc6 {[%emt 0:00:04]} 1-0

[Event "EYCC Open-U18 2019"]
[Site "Bratislava"]
[Date "2019.08.03"]
[Round "2.20"]
[White "Vardanyan, Aras"]
[Black "Stijve, Theo"]
[Result "1-0"]
[ECO "D86"]
[WhiteElo "2027"]
[BlackElo "2336"]
[Annotator "NA"]
[PlyCount "69"]
[EventDate "2019.08.02"]
[EventType "swiss"]
[EventCountry "SVK"]
[SourceTitle "playchess.com"]
[Source "ChessBase"]
[SourceQuality "1"]
[TimeControl "40/5400+30:1800+30"]

1. d4 {[%emt 0:00:00]} Nf6 {[%emt 0:00:06]} 2. c4 {[%emt 0:00:03]} g6 {[%emt 0:00:09]} 3. Nc3 {[%emt 0:00:12]} d5 {[%emt 0:00:08]} 4. cxd5 {[%emt 0:00:07]} Nxd5 {[%emt 0:00:06]} 5. e4 {[%emt 0:01:06]} Nxc3 {[%emt 0:00:09]} 6. bxc3 {[%emt 0:00:05]} Bg7 {[%emt 0:00:11]} 7. Bc4 {[%emt 0:00:09]} c5 {[%emt 0:00:07]} 8. Ne2 {[%emt 0:00:08]} Nc6 {[%emt 0:00:06]} 9. Be3 {[%emt 0:00:07]} O-O {[%emt 0:00:09]} 10. O-O {[%emt 0:00:07]} b6 {[%emt 0:00:11]} 11. Qd2 {[%emt 0:01:45]} Bb7 {[%emt 0:00:53]} 12. Bh6 {[%emt 0:00:10]} Bxh6 {[%emt 0:16:14]} 13. Qxh6 {[%emt 0:03:47]} cxd4 {[%emt 0:00:11]} 14. f4 {[%emt 0:05:13]} e5 {[%emt 0:09:02]} 15. Rf3 {[%emt 0:01:28]} Qf6 {[%emt 0:05:02]} 16. fxe5 {[%emt 0:05:17]} Qg7 {[%emt 0:08:03]} 17. Qxg7+ {[%emt 0:00:55]} Kxg7 {[%emt 0:00:01]} 18. cxd4 {[%emt 0:00:49]} Rac8 {[%emt 0:01:08]} 19. Bd5 {[%emt 0:08:40]} Ba6 {[%emt 0:01:55]} 20. Bxc6 {[%emt 0:01:23]} Rxc6 {[%emt 0:10:38]} 21. Nf4 {[%emt 0:04:23]} Rc4 {[%emt 0:04:27]} 22. Ra3 {[%emt 0:01:26]} Bc8 {[%emt 0:02:42]} 23. Rd1 {[%emt 0:03:48]} a5 {[%emt 0:11:50]} 24. Nd5 {[%emt 0:02:43]} Rc6 {[%emt 0:05:46]} 25. Nf6 {[%emt 0:07:04]} Rd8 {[%emt 0:02:53]} 26. Rad3 {[%emt 0:04:23]} Ba6 {[%emt 0:06:14]} 27. d5 {[%emt 0:02:08]} Rc5 {[%emt 0:02:56]} 28. R3d2 {[%emt 0:02:44]} b5 {[%emt 0:01:23]} 29. g4 {[%emt 0:03:14]} h6 {[%emt 0:00:53]} 30. h4 {[%emt 0:00:21]} b4 {[%emt 0:00:57]} 31. g5 {[%emt 0:01:40]} h5 {[%emt 0:03:07]} 32. e6 {[%emt 0:02:42]} Kf8 {[%emt 0:01:31]} 33. Nd7+ {[%emt 0:00:54]} Rxd7 {[%emt 0:00:17]} 34. exd7 {[%emt 0:00:07]} Ke7 {[%emt 0:00:06]} 35. Rf2 {[%emt 0:00:07]} 1-0

[Event "EYCC Open-U18 2019"]
[Site "Bratislava"]
[Date "2019.08.03"]
[Round "2.21"]
[White "Fus, Jakub"]
[Black "Ghersinich, Enrico"]
[Result "1-0"]
[ECO "A57"]
[WhiteElo "2341"]
[BlackElo "2221"]
[Annotator "NA"]
[PlyCount "73"]
[EventDate "2019.08.02"]
[EventType "swiss"]
[EventCountry "SVK"]
[SourceTitle "playchess.com"]
[Source "ChessBase"]
[SourceQuality "1"]
[TimeControl "40/5400+30:1800+30"]

1. d4 {[%emt 0:00:00]} Nf6 {[%emt 0:00:00]} 2. c4 {[%emt 0:00:05]} c5 {[%emt 0:00:33]} 3. d5 {[%emt 0:00:35]} b5 {[%emt 0:00:27]} 4. cxb5 {[%emt 0:00:36]} a6 {[%emt 0:00:19]} 5. e3 {[%emt 0:00:19]} g6 {[%emt 0:02:11]} 6. Nc3 {[%emt 0:01:02]} Bg7 {[%emt 0:00:08]} 7. Nf3 {[%emt 0:00:34]} O-O {[%emt 0:00:29]} 8. a4 {[%emt 0:00:41]} Bb7 {[%emt 0:00:29]} 9. Ra3 {[%emt 0:07:31]} e6 {[%emt 0:01:00]} 10. dxe6 {[%emt 0:00:20]} fxe6 {[%emt 0:00:14]} 11. Be2 {[%emt 0:05:14]} d5 {[%emt 0:00:33]} 12. O-O {[%emt 0:00:21]} Qe7 {[%emt 0:05:40]} 13. Re1 {[%emt 0:16:46]} Kh8 {[%emt 0:12:38]} 14. Bd3 {[%emt 0:12:39]} e5 {[%emt 0:09:12]} 15. e4 {[%emt 0:03:38]} d4 {[%emt 0:00:13]} 16. Nb1 {[%emt 0:08:05]} axb5 {[%emt 0:06:02]} 17. axb5 {[%emt 0:01:11]} Nbd7 {[%emt 0:00:07]} 18. Nbd2 {[%emt 0:00:43]} Nb6 {[%emt 0:00:21]} 19. b3 {[%emt 0:02:10]} Bh6 {[%emt 0:09:09]} 20. Rxa8 {[%emt 0:03:56]} Rxa8 {[%emt 0:00:20]} 21. Nc4 {[%emt 0:02:23]} Ra1 {[%emt 0:00:52]} 22. Qe2 {[%emt 0:02:10]} Nxc4 {[%emt 0:19:05]} 23. Bxh6 {[%emt 0:01:34]} Rxe1+ {[%emt 0:00:08]} 24. Nxe1 {[%emt 0:01:30]} Nd6 {[%emt 0:00:07]} 25. f3 {[%emt 0:05:01]} Nh5 {[%emt 0:01:52]} 26. Bc1 {[%emt 0:02:16]} Bc8 {[%emt 0:00:45]} 27. Qa2 {[%emt 0:03:49]} Be6 {[%emt 0:02:30]} 28. Qa8+ {[%emt 0:01:10]} Kg7 {[%emt 0:07:36]} 29. Qc6 {[%emt 0:06:06]} Nb7 {[%emt 0:05:50]} 30. b6 {[%emt 0:01:10]} Bxb3 {[%emt 0:08:06]} 31. Ba6 {[%emt 0:00:47]} Nd8 {[%emt 0:00:01]} 32. Qc7 {[%emt 0:01:44]} Kf8 {[%emt 0:00:08]} 33. Ba3 {[%emt 0:01:06]} Ke8 {[%emt 0:06:03]} 34. Bb5+ {[%emt 0:00:13]} Kf7 {[%emt 0:00:13]} 35. Bxc5 {[%emt 0:00:06]} Qxc7 {[%emt 0:00:55]} 36. bxc7 {[%emt 0:00:05]} Be6 {[%emt 0:00:18]} 37. cxd8=Q {[%emt 0:00:16]} 1-0

[Event "EYCC Open-U18 2019"]
[Site "Bratislava"]
[Date "2019.08.03"]
[Round "2.22"]
[White "Kaspar, Lukas"]
[Black "Chylewski, Patryk"]
[Result "0-1"]
[ECO "A01"]
[WhiteElo "1886"]
[BlackElo "2376"]
[Annotator "NA"]
[PlyCount "78"]
[EventDate "2019.08.02"]
[EventType "swiss"]
[EventCountry "SVK"]
[SourceTitle "playchess.com"]
[Source "ChessBase"]
[SourceQuality "1"]
[TimeControl "40/5400+30:1800+30"]

1. b3 {[%emt 0:00:00]} d5 {[%emt 0:01:08]} 2. Bb2 {[%emt 0:00:14]} Bg4 {[%emt 0:00:21]} 3. g3 {[%emt 0:02:22]} c6 {[%emt 0:00:50]} 4. Bg2 {[%emt 0:02:32]} Nd7 {[%emt 0:00:13]} 5. Nf3 {[%emt 0:03:34]} Ngf6 {[%emt 0:00:07]} 6. c4 {[%emt 0:02:08]} e6 {[%emt 0:00:51]} 7. O-O {[%emt 0:02:45]} Bd6 {[%emt 0:00:37]} 8. d4 {[%emt 0:06:07]} O-O {[%emt 0:00:45]} 9. Nc3 {[%emt 0:04:28]} Qe7 {[%emt 0:03:18]} 10. Re1 {[%emt 0:07:08]} dxc4 {[%emt 0:04:28]} 11. bxc4 {[%emt 0:01:05]} e5 {[%emt 0:01:10]} 12. d5 {[%emt 0:13:08]} cxd5 {[%emt 0:02:48]} 13. Nxd5 {[%emt 0:07:31]} Nxd5 {[%emt 0:01:40]} 14. cxd5 {[%emt 0:01:48]} Bxf3 {[%emt 0:12:19]} 15. Bxf3 {[%emt 0:03:40]} b5 {[%emt 0:04:40]} 16. Rc1 {[%emt 0:05:47]} Nb6 {[%emt 0:02:12]} 17. Qb3 {[%emt 0:03:32]} Rab8 {[%emt 0:07:42]} 18. e4 {[%emt 0:04:08]} Na4 {[%emt 0:04:38]} 19. Rc2 {[%emt 0:02:56]} a5 {[%emt 0:01:52]} 20. Be2 {[%emt 0:01:53]} Nc5 {[%emt 0:01:32]} 21. Qe3 {[%emt 0:00:51]} b4 {[%emt 0:15:01]} 22. Rec1 {[%emt 0:03:14]} b3 {[%emt 0:04:46]} 23. axb3 {[%emt 0:01:53]} Nxb3 {[%emt 0:01:02]} 24. Rd1 {[%emt 0:01:22]} Bc5 {[%emt 0:03:16]} 25. Qd3 {[%emt 0:02:39]} Qf6 {[%emt 0:02:41]} 26. Bf1 {[%emt 0:01:01]} Rfd8 {[%emt 0:01:48]} 27. Bc3 {[%emt 0:03:49]} a4 {[%emt 0:05:01]} 28. Qa6 {[%emt 0:02:15]} Qf3 {[%emt 0:03:06]} 29. Qe2 {[%emt 0:00:32]} Bxf2+ {[%emt 0:01:14]} 30. Qxf2 {[%emt 0:01:22]} Qxd1 {[%emt 0:00:04]} 31. Bxe5 {[%emt 0:00:30]} Rbc8 {[%emt 0:01:59]} 32. Ra2 {[%emt 0:01:56]} Rc1 {[%emt 0:03:01]} 33. Bf4 {[%emt 0:04:11]} Ra1 {[%emt 0:00:32]} 34. Rc2 {[%emt 0:01:02]} Qd4 {[%emt 0:01:17]} 35. Bg5 {[%emt 0:03:33]} f6 {[%emt 0:00:56]} 36. Bf4 {[%emt 0:00:19]} Qxe4 {[%emt 0:00:36]} 37. Rc7 {[%emt 0:00:44]} Nd4 {[%emt 0:00:37]} 38. Be3 {[%emt 0:00:28]} Nf3+ {[%emt 0:00:17]} 39. Kg2 {[%emt 0:00:08]} Nd2+ {[%emt 0:00:19]} 0-1

[Event "EYCC Open-U18 2019"]
[Site "Bratislava"]
[Date "2019.08.03"]
[Round "2.23"]
[White "Pantzar, Milton"]
[Black "Brinovec, David"]
[Result "1-0"]
[ECO "D45"]
[WhiteElo "2357"]
[BlackElo "2205"]
[Annotator "NA"]
[PlyCount "85"]
[EventDate "2019.08.02"]
[EventType "swiss"]
[EventCountry "SVK"]
[SourceTitle "playchess.com"]
[Source "ChessBase"]
[SourceQuality "1"]
[TimeControl "40/5400+30:1800+30"]

1. d4 {[%emt 0:00:00]} d5 {[%emt 0:00:00]} 2. c4 {[%emt 0:00:00]} e6 {[%emt 0:00:00]} 3. Nc3 {[%emt 0:00:19]} c6 {[%emt 0:00:00]} 4. e3 {[%emt 0:02:46]} Nf6 {[%emt 0:00:21]} 5. Nf3 {[%emt 0:00:41]} Nbd7 {[%emt 0:00:22]} 6. Qc2 {[%emt 0:01:25]} Bd6 {[%emt 0:00:38]} 7. b3 {[%emt 0:00:20]} O-O {[%emt 0:02:37]} 8. Bb2 {[%emt 0:00:31]} Qe7 {[%emt 0:02:22]} 9. Be2 {[%emt 0:00:25]} b6 {[%emt 0:05:31]} 10. O-O {[%emt 0:00:14]} Bb7 {[%emt 0:00:29]} 11. Rad1 {[%emt 0:02:30]} Rad8 {[%emt 0:00:53]} 12. Rfe1 {[%emt 0:01:02]} c5 {[%emt 0:15:37]} 13. cxd5 {[%emt 0:05:12]} exd5 {[%emt 0:01:09]} 14. Qf5 {[%emt 0:03:02]} Rfe8 {[%emt 0:07:14]} 15. Bd3 {[%emt 0:09:06]} Bb8 {[%emt 0:13:08]} 16. Bb1 {[%emt 0:07:15]} g6 {[%emt 0:11:01]} 17. Qh3 {[%emt 0:24:04]} Nf8 {[%emt 0:13:46]} 18. Qh4 {[%emt 0:07:43]} Ne6 {[%emt 0:11:40]} 19. Ng5 {[%emt 0:17:08]} Nxg5 {[%emt 0:01:23]} 20. Qxg5 {[%emt 0:00:05]} cxd4 {[%emt 0:08:23]} 21. Nb5 {[%emt 0:02:16]} Ne4 {[%emt 0:01:19]} 22. Qxe7 {[%emt 0:00:09]} Rxe7 {[%emt 0:00:01]} 23. Bxd4 {[%emt 0:02:12]} Rc8 {[%emt 0:00:17]} 24. Rc1 {[%emt 0:04:33]} Ree8 {[%emt 0:00:07]} 25. f3 {[%emt 0:02:02]} Nc5 {[%emt 0:01:30]} 26. Kf2 {[%emt 0:01:10]} Ne6 {[%emt 0:01:33]} 27. Bf6 {[%emt 0:01:00]} Rc5 {[%emt 0:00:11]} 28. Nd4 {[%emt 0:01:50]} Rec8 {[%emt 0:00:26]} 29. Rcd1 {[%emt 0:00:50]} Kf8 {[%emt 0:00:39]} 30. h4 {[%emt 0:00:32]} Ng7 {[%emt 0:01:03]} 31. g4 {[%emt 0:01:07]} h6 {[%emt 0:01:08]} 32. Bxg7+ {[%emt 0:02:53]} Kxg7 {[%emt 0:00:04]} 33. h5 {[%emt 0:00:04]} Re8 {[%emt 0:00:11]} 34. Rg1 {[%emt 0:00:52]} Rc3 {[%emt 0:01:19]} 35. g5 {[%emt 0:00:30]} hxg5 {[%emt 0:00:27]} 36. hxg6 {[%emt 0:00:26]} fxg6 {[%emt 0:00:35]} 37. Rxg5 {[%emt 0:00:12]} Kf8 {[%emt 0:00:04]} 38. Rh1 {[%emt 0:01:00]} Be5 {[%emt 0:01:00]} 39. Bxg6 {[%emt 0:01:08]} Bxd4 {[%emt 0:00:23]} 40. exd4 {[%emt 0:00:00]} Ree3 {[%emt 0:00:00]} 41. Rf5+ {[%emt 0:02:49]} Kg7 {[%emt 0:03:21]} 42. Rg1 {[%emt 0:00:58]} Re7 {[%emt 0:00:48]} 43. Bf7+ {[%emt 0:01:11]} 1-0

[Event "EYCC Open-U18 2019"]
[Site "Bratislava"]
[Date "2019.08.03"]
[Round "2.25"]
[White "Schoppen, Casper"]
[Black "Rodriguez Izquierdo, Luis"]
[Result "1-0"]
[ECO "B32"]
[WhiteElo "2493"]
[BlackElo "2007"]
[Annotator "ChessBase"]
[PlyCount "65"]
[EventDate "2019.08.02"]
[EventType "swiss"]
[EventCountry "SVK"]
[SourceTitle "playchess.com"]
[Source "ChessBase"]
[SourceQuality "1"]
[TimeControl "40/5400+30:1800+30"]

1. e4 {[%emt 0:00:00]} c5 {[%emt 0:00:00]} 2. Nf3 {[%emt 0:00:00]} Nc6 {[%emt 0:00:00]} 3. d4 {[%emt 0:00:00]} cxd4 {[%emt 0:00:00]} 4. Nxd4 {[%emt 0:00:00]} e5 {[%emt 0:00:06]} 5. Nb5 {[%emt 0:00:00]} d6 {[%emt 0:00:13]} 6. N1c3 {[%emt 0:00:00]} a6 {[%emt 0:00:27]} 7. Na3 {[%emt 0:00:00]} Be7 {[%emt 0:00:05]} 8. Nc4 {[%emt 0:00:04]} b5 {[%emt 0:00:42]} 9. Ne3 {[%emt 0:00:05]} Nf6 {[%emt 0:00:10]} 10. Bd3 {[%emt 0:00:04]} O-O {[%emt 0:01:01]} 11. O-O {[%emt 0:00:05]} Rb8 {[%emt 0:01:26]} 12. a3 {[%emt 0:04:29]} Nd4 {[%emt 0:06:00]} 13. Ncd5 {[%emt 0:01:49]} Ne6 {[%emt 0:04:05]} 14. c3 {[%emt 0:08:00]} Nxd5 {[%emt 0:02:51]} 15. Nxd5 {[%emt 0:00:16]} Bg5 {[%emt 0:00:49]} 16. g3 {[%emt 0:06:18]} Bxc1 {[%emt 0:02:12]} 17. Rxc1 {[%emt 0:00:35]} Nc5 {[%emt 0:04:04]} 18. Bc2 {[%emt 0:02:17]} Bh3 {[%emt 0:13:47]} 19. Re1 {[%emt 0:01:51]} f5 {[%emt 0:00:23]} 20. exf5 {[%emt 0:03:14]} Bxf5 {[%emt 0:01:35]} 21. Bxf5 {[%emt 0:00:49]} Rxf5 {[%emt 0:00:13]} 22. b4 {[%emt 0:00:14]} Na4 {[%emt 0:03:36]} 23. c4 {[%emt 0:02:42]} Qf8 {[%emt 0:05:08]} 24. Qc2 {[%emt 0:03:58]} Kh8 {[%emt 0:03:30]} 25. c5 {[%emt 0:02:33]} dxc5 {[%emt 0:11:32]} 26. bxc5 {[%emt 0:00:41]} e4 {[%emt 0:00:05]} 27. Qxe4 {[%emt 0:01:45]} Rxf2 {[%emt 0:00:11]} 28. c6 {[%emt 0:00:33]} Rd2 {[%emt 0:30:57]} 29. Rf1 {[%emt 0:01:38]} Qd6 {[%emt 0:00:42]} 30. c7 {[%emt 0:00:28]} Rc8 {[%emt 0:00:09]} 31. Qf5 {[%emt 0:00:31]} Nb6 {[%emt 0:00:31]} 32. Nxb6 {[%emt 0:02:29]} Qxb6+ {[%emt 0:00:06]} 33. Rc5 {[%emt 0:00:19]} 1-0